fUST/lending_fUST_20250927
["ID","MTS","AMOUNT","RATE_DAILY","PERIOD"]
[387974142,1758947433384,-256.5,0.00032876,60]
[387974143,1758947433394,-735.661035,0.00032877,2]
[387974144,1758947433403,-157.748,0.00032881,2]
[387974145,1758947433413,-160.91597898,0.00032881,10]
[387974146,1758947433423,-265.0,0.00032882,120]
[387974147,1758947433433,-164.92,0.00032883,120]
[387974148,1758947433443,-396.47473731,0.00032883,7]
[387974149,1758947433453,-606.86011271,0.00032883,7]
[387974150,1758947433463,-8937.76306712,0.00032884,2]
[387974151,1758947433472,-30743.40097661,0.00032884,20]
[387974152,1758947433485,-1254.16185506,0.00032884,20]
[387974153,1758947433496,-2036.5,0.00032884,20]
[387974154,1758947433508,-6629.26828219,0.00032884,20]
[387974178,1758947438395,-151.0,0.00032849,30]
[387974180,1758947438405,-13431.60873102,0.00032884,20]
[387974182,1758947438416,-762.98972031,0.00032884,20]
[387974185,1758947438428,-791.15330908,0.00032884,20]
[387974186,1758947438454,-14931.40272429,0.00032884,20]
[387974187,1758947438465,-485.47782603,0.00032884,20]
[387974192,1758947438731,-480.0,0.00032884,20]
[387974193,1758947438743,-1107.24131769,0.00032884,20]
[387974194,1758947438754,-910.43206982,0.00032884,20]
[387974195,1758947438776,-13549.0071506,0.00032884,20]
[387974196,1758947438799,-1619872.31470055,0.00032884,20]
[387974260,1758947442341,-120.58986817,0.00032884,20]
[387974261,1758947442357,-645156.90544603,0.00032884,20]
[387974263,1758947442388,-32216.0944587,0.00032884,20]
[387974265,1758947442401,-11181.729401,0.00032884,20]
[387974268,1758947442423,-470.11384945,0.00032884,20]
[387974481,1758947444483,-863.46421966,0.00032884,20]
[387974501,1758947444656,-200.76439894,0.00032884,20]
[387974511,1758947444738,-263.80066575,0.00032884,20]
[387974513,1758947444750,-88901.73528964,0.00032884,20]
[387974691,1758947446331,-340.66259635,0.00032884,20]
[387974693,1758947446344,-2401.00668728,0.00032884,20]
[387974699,1758947446393,-4530.99280629,0.00032884,20]
[387974701,1758947446404,-8075.48746256,0.00032884,20]
[387974703,1758947446415,-21507.67372874,0.00032884,20]
[387974704,1758947446451,-257767.97537257,0.00032884,20]
[387974709,1758947446511,-422.748628,0.00032884,20]
[387974711,1758947446523,-623.89357415,0.00032884,20]
[387977186,1758947471382,288.16,0.000249,2]
[387979731,1758947548937,181.0,0.00023205,9]
[387979733,1758947571437,417.15472785,0.00026296,2]
[387979734,1758947571984,417.15472785,0.00025,30]
[387979735,1758947572457,417.15472785,0.00026,60]
[387979736,1758947575227,300.0,0.000249,2]
[387979737,1758947587035,300.0,0.000249,2]
[387979738,1758947598295,300.0,0.000249,2]
[387979739,1758947609263,300.0,0.000249,2]
[387979740,1758947613742,5000.0,0.00026296,3]
[387979741,1758947620411,300.0,0.000249,2]
[387979742,1758947626290,300.0,0.00026,2]
[387979743,1758947628067,1767.54581645,0.00026296,2]
[387979744,1758947628088,560.84532687,0.00026296,2]
[387979745,1758947631671,300.0,0.000249,2]
[387979747,1758947635952,2620.41352439,0.00026296,2]
[387979748,1758947637474,300.0,0.00026,2]
[387979749,1758947643906,300.0,0.000249,2]
[387979750,1758947649346,300.0,0.00026,2]
[387979751,1758947656053,300.0,0.000249,2]
[387979752,1758947659300,2568.92366972,0.00026296,2]
[387979753,1758947661218,300.0,0.00026,2]
[387979754,1758947667228,1069.98631161,0.00026296,2]
[387979755,1758947667821,300.0,0.000249,2]
[387979756,1758947675430,1219.49177716,0.00026296,2]
[387979757,1758947676235,160.34939025,0.00026,2]
[387979758,1758947676257,139.65060975,0.00026,2]
[387979759,1758947678862,300.0,0.000249,2]
[387979764,1758947685483,300.0,0.00026,2]
[387979765,1758947688917,5000.0,0.00032882,63]
[387979766,1758947690992,300.0,0.00026,2]
[387979767,1758947705125,1501.54842167,0.00026296,2]
[387979768,1758947728284,418.32292495,0.00026296,2]
[387979772,1758948044327,3964.20001971,0.000199,2]
[387979773,1758948044395,3964.20001949,0.00025788,4]
[387979774,1758948044634,2071.6099608,0.00021372,2]
[387979775,1758948044659,1892.59005869,0.00021372,2]
[387979776,1758948044841,3964.20001949,0.00024316,2]
[387979777,1758948044997,3964.20001949,0.00022844,2]
[387979778,1758948053809,179.01990233,0.00026296,2]
[387979779,1758948053831,1235.25055913,0.00026296,2]
[387979780,1758948061762,5000.0,0.00026296,2]
[387979781,1758948070011,3764.75944087,0.00026296,2]
[387979782,1758948070038,1235.24055913,0.00026296,2]
[387979783,1758948085618,5000.0,0.00026296,2]
[387979784,1758948093761,3764.76944087,0.00026296,2]
[387979785,1758948093789,1235.23055913,0.00026296,2]
[387979786,1758948102761,3683.63222549,0.000199,2]
[387979787,1758948102829,3683.6322254,0.00025788,4]
[387979788,1758948102859,1397.51498998,0.00021372,2]
[387979789,1758948102882,2286.11723542,0.00021372,2]
[387979790,1758948103027,3683.6322254,0.00024316,2]
[387979791,1758948109155,4030.26053918,0.00026296,2]
[387979792,1758948109177,969.73946082,0.00026296,2]
[387979793,1758948117123,5000.0,0.00026296,2]
[387979794,1758948133170,4030.27053918,0.00026296,2]
[387979795,1758948133193,969.72946082,0.00026296,2]
[387979796,1758948141712,5000.0,0.00026296,2]
[387979797,1758948157184,4030.28053918,0.00026296,2]
[387979798,1758948157208,969.71946082,0.00026296,2]
[387979799,1758948165167,5000.0,0.00026296,2]
[387979800,1758948180348,4030.29053918,0.00026296,2]
[387979801,1758948180371,969.70946082,0.00026296,2]
[387979802,1758948188333,5000.0,0.00026296,2]
[387979803,1758948204665,4030.30053918,0.00026296,2]
[387979804,1758948204688,969.69946082,0.00026296,2]
[387979805,1758948212401,5000.0,0.00026296,2]
[387979806,1758948227849,4030.31053918,0.00026296,2]
[387979807,1758948227872,969.68946082,0.00026296,2]
[387979808,1758948235783,1568.88691015,0.00026296,2]
[387979809,1758948244058,5000.0,0.00026296,2]
[387979810,1758948251933,2461.43362903,0.00026296,2]
[387979811,1758948251956,2538.56637097,0.00026296,2]
[387979812,1758948264033,161.0,9e-07,2]
[387979813,1758948267471,3298.05701333,0.00026296,2]
[387979814,1758948275842,4002.3866157,0.00026296,2]
[387979815,1758948275885,997.6133843,0.00026296,2]
[387979816,1758948283637,2470.21187555,0.00026296,2]
[387979817,1758948291697,4665.7005443,0.00026296,2]
[387979818,1758948294651,1360.64294915,0.00026165,16]
[387979819,1758948300320,505.8412467,0.00026296,2]
[387979820,1758948300345,4494.1587533,0.00026296,2]
[387979821,1758948316063,3601.73103586,0.00026296,2]
[387979822,1758948324232,5000.0,0.00026296,2]
[387979823,1758948332589,5000.0,0.00026296,2]
[387979824,1758948348721,0.01,0.00026296,2]
[387979825,1758948348746,4999.99,0.00026296,2]
[387979826,1758948349131,-300.0,0.00027258,2]
[387979827,1758948349153,-78.59655866,0.00027258,2]
[387979828,1758948356539,4741.5772306,0.00026296,2]
[387979829,1758948372686,258.4427694,0.00026296,2]
[387979830,1758948372708,4741.5572306,0.00026296,2]
[387979831,1758948381288,2529.78812445,0.00026296,2]
[387979832,1758948397305,2728.66464495,0.00026296,2]
[387979833,1758948397328,2271.33535505,0.00026296,2]
[387979834,1758948405231,2329.56637108,0.00026296,2]
[387979835,1758948405929,980.2293593,0.00026229,16]
[387979836,1758948420396,4418.87891457,0.00026296,2]
[387979837,1758948420420,581.12108543,0.00026296,2]
[387979838,1758948439122,-697.18159428,0.00026361,2]
[387979839,1758948442076,-827.71959228,0.00026361,2]
[387979840,1758948444375,307.38212541,0.00026296,2]
[387979841,1758948447082,-1114.53383008,0.00026361,2]
[387979842,1758948480309,269.7412961,0.00025205,2]
[387979843,1758948526187,254.81647159,0.000252,2]
[387979844,1758948531573,184.48611124,0.00026296,2]
[387979845,1758948540169,154.41378196,0.00025205,2]
[387979846,1758948556087,-472.74926521,0.00026361,2]
[387979847,1758948556108,-213.47710216,0.00027158,2]
[387979848,1758948556129,-1200.0,0.00027257,2]
[387979849,1758948556150,-453.6195326,0.00027257,2]
[387979850,1758948556171,-500.36794466,0.00027257,2]
[387979851,1758948556192,-500.0,0.00027257,2]
[387979852,1758948556417,-183.33,0.00027257,2]
[387979853,1758948556440,-106.40344134,0.00027258,2]
[387979854,1758948556462,-225.0,0.00027258,2]
[387979855,1758948556485,-3683.6322254,0.00027259,7]
[387979856,1758948556506,-4716.60726712,0.00028465,2]
[387979857,1758948556528,-3683.6322254,0.00028731,10]
[387979858,1758948556551,-480.0,0.0002946,2]
[387979859,1758948556573,-335.06521115,0.0002972,120]
[387979861,1758948561500,2377.79446577,0.00026296,2]
[387979862,1758948569095,153.0,9e-07,2]
[387979863,1758948574201,-308.04696724,0.00027257,2]
[387979864,1758948579783,178.64646737,0.00027257,2]
[387979865,1758948586773,300.0,0.000263,2]
[387979873,1758948603883,167.5081595,0.00015386,2]
[387979875,1758948625392,677.55954487,0.00022895,2]
[387979876,1758948625414,10000.01,0.00022895,2]
[387979877,1758948625436,10000.01,0.00022895,2]
[387979878,1758948625458,10000.01,0.00022895,2]
[387979879,1758948625479,10000.01,0.00022895,2]
[387979880,1758948625501,1354.08287073,0.00022895,2]
[387979893,1758948632548,-737.20048048,0.0002972,120]
[387979895,1758948632604,-586.50130837,0.0002972,120]
[387979896,1758948632615,-3683.6322254,0.00030203,13]
[387979898,1758948632624,-1472.1939871,0.00030962,2]
[387979900,1758948632634,-166.063822,0.0003135,2]
[387979902,1758948632645,-166.063822,0.0003135,120]
[387979903,1758948632654,-795.995844,0.00031666,30]
[387979904,1758948632665,-1684.7989893,0.00031675,16]
[387979916,1758948638573,-1998.8332361,0.00031675,16]
[387979918,1758948638582,-184.82473078,0.00032,120]
[387979919,1758948638592,-169.62692056,0.00032,120]
[387979920,1758948638601,-213.22406977,0.00032,120]
[387979921,1758948638611,-250.0,0.00032168,2]
[387979922,1758948638620,-168.0,0.00032196,2]
[387979923,1758948638629,-168.0,0.00032218,2]
[387979924,1758948638638,-184.82473078,0.000323,120]
[387979925,1758948638647,-957.21849671,0.00032532,2]
[387979927,1758948638657,-157.874,0.00032632,33]
[387979928,1758948638666,-514.71321916,0.00032632,2]
[387979929,1758948638677,-15.70365655,0.00032632,2]
[387979930,1758948638687,-1000.0,0.00032632,2]
[387979931,1758948638696,-1000.0,0.00032632,2]
[387979932,1758948638705,-1000.0,0.00032632,2]
[387979933,1758948638715,-250.0,0.00032632,2]
[387979934,1758948638725,-250.0,0.00032632,2]
[387979935,1758948638739,-250.0,0.00032632,2]
[387979936,1758948638748,-250.0,0.00032632,2]
[387979937,1758948638757,-133.87968378,0.00032652,2]
[387979938,1758948638768,-750.0,0.00032652,2]
[387979939,1758948638788,-29385.85782757,0.00032652,2]
[387979940,1758948638797,-1000.0,0.00032662,5]
[387979941,1758948638807,-500.0,0.00032749,15]
[387979942,1758948638816,-500.0,0.00032749,15]
[387979943,1758948638825,-151.39382894,0.00032751,2]
[387979944,1758948638834,-272.50889209,0.00032751,2]
[387979945,1758948638843,-189.64850477,0.00032751,2]
[387979946,1758948638852,-154.36927554,0.00032794,2]
[387979947,1758948638862,-6457.12520472,0.00032794,2]
[387979948,1758948638871,-4679.83337456,0.00032795,2]
[387979949,1758948638881,-1447.35952716,0.00032795,2]
[387979950,1758948638890,-2010.84911596,0.00032838,2]
[387979951,1758948638899,-317.58481069,0.0003284,3]
[387979952,1758948638908,-501.41425219,0.00032873,5]
[387979953,1758948638918,-500.0,0.00032873,5]
[387979954,1758948638927,-500.0,0.00032873,5]
[387979955,1758948638936,-500.0,0.00032873,5]
[387979956,1758948638946,-500.0,0.00032873,3]
[387979957,1758948638955,-500.0,0.00032873,5]
[387979958,1758948638964,-500.94268825,0.00032873,5]
[387979959,1758948638974,-505.47742658,0.00032873,5]
[387979960,1758948638983,-500.0,0.00032873,5]
[387979961,1758948638992,-500.48543167,0.00032873,5]
[387979962,1758948639001,-500.96170312,0.00032873,5]
[387979963,1758948639011,-500.49268473,0.00032873,5]
[387979964,1758948639020,-738.180916,0.00032877,2]
[387979965,1758948639029,-151.0,0.00032881,10]
[387979966,1758948639038,-151.0,0.00032881,10]
[387979967,1758948639048,-153.9317284,0.00032881,10]
[387979968,1758948639057,-151.0,0.00032881,10]
[387979969,1758948639067,-202.18283777,0.00032881,10]
[387979970,1758948639076,-348.24,0.00032885,3]
[387979971,1758948639085,-160.0,0.00032892,2]
[387979972,1758948639095,-299.27980241,0.00032893,7]
[387979973,1758948639104,-153.65506528,0.00032893,7]
[387979974,1758948639113,-152.41683478,0.00032893,7]
[387979975,1758948639122,-500.0,0.00032893,7]
[387979976,1758948639131,-151.42718219,0.00032893,7]
[387979977,1758948639141,-500.0,0.00032894,20]
[387979978,1758948639150,-458.70877522,0.00032894,7]
[387979979,1758948639159,-4468.88153356,0.00032895,2]
[387979980,1758948639168,-1425588.74589286,0.00032895,20]
[387979981,1758948639177,-150.0,0.00032895,30]
[387979982,1758948639186,-150.0,0.00032895,2]
[387979983,1758948639196,-155644.42280328,0.00032895,20]
[387979984,1758948639208,-1476.74111514,0.00032895,20]
[387980012,1758948640470,-697.59919671,0.00032895,20]
[387980015,1758948640483,-161842.75252148,0.00032895,20]
[387980020,1758948640527,-1000.1909736,0.00032895,20]
[387980022,1758948640538,-12493.22502206,0.00032895,20]
[387980024,1758948640549,-256.15400278,0.00032895,20]
[387980027,1758948640561,-380.36253887,0.00032895,20]
[387980332,1758948643539,-5000.0,0.00032566,2]
[387980334,1758948643548,-25079.00000054,0.00032895,20]
[387980336,1758948643559,-851.98011771,0.00032895,20]
[387980340,1758948643598,-5333.74110694,0.00032895,20]
[387980347,1758948643656,-20442.60000672,0.00032895,20]
[387980587,1758948646635,-500.0,0.00032885,3]
[387980589,1758948646644,-45962.80151725,0.00032895,20]
[387980596,1758948646706,-570.04000009,0.00032895,20]
[387980599,1758948646717,-400.0,0.00032895,20]
[387980763,1758948648375,-40100.0,0.00032895,20]
[387980764,1758948648395,-12335.92431193,0.00032895,20]
[387980765,1758948648406,-316.5354621,0.00032895,20]
[387980766,1758948648417,-853.79934507,0.00032895,20]
[387982088,1758948767419,160.0,0.00026296,2]
[387982089,1758948810604,191.45,0.000249,2]
[387982090,1758948844165,5000.0,0.00026296,2]
[387982091,1758948852681,2604.85155539,0.00026296,2]
[387982092,1758948861640,2043.70844461,0.00026296,2]
[387982093,1758948861665,2956.29155539,0.00026296,2]
[387982094,1758948869522,5000.0,0.00026296,2]
[387982095,1758948885034,2043.71844461,0.00026296,2]
[387982096,1758948885059,2956.28155539,0.00026296,2]
[387982097,1758948892943,4695.6716918,0.00026296,2]
[387982098,1758948908419,2348.05675281,0.00026296,2]
[387982099,1758948908451,2651.94324719,0.00026296,2]
[387982100,1758948916521,5000.0,0.00026296,2]
[387982101,1758948933158,5000.0,0.00025205,2]
[387982102,1758948941846,4718.79377712,0.00026296,2]
[387982103,1758948950095,3681.22622288,0.00026296,2]
[387982104,1758948958655,1599.99,0.00026296,2]
[387982105,1758948958679,3400.01,0.00026296,2]
[387982121,1758948981216,5000.0,0.00026296,2]
[387982122,1758949003798,1600.0,0.00026296,2]
[387982123,1758949003821,3400.0,0.00026296,2]
[387982124,1758949026686,5000.0,0.00026296,2]
[387982125,1758949035238,1600.01,0.00026296,2]
[387982126,1758949035261,2397.08084686,0.00026296,2]
[387982127,1758949050639,5000.0,0.00026296,2]
[387982128,1758949052378,1424.0,0.00026296,2]
[387982129,1758949058612,1178.92915314,0.00026296,2]
[387982130,1758949058637,2739.30315019,0.00026296,2]
[387982131,1758949074119,5000.0,0.00026296,2]
[387982132,1758949082769,2260.70684981,0.00026296,2]
[387982133,1758949082793,1085.50343256,0.00026296,2]
[387982134,1758949083838,227.32182254,0.000253,2]
[387982135,1758949083862,274.38732405,0.000253,2]
[387982136,1758949098211,5000.0,0.00026296,2]
[387982137,1758949106725,3489.71948293,0.00026296,2]
[387982138,1758949115170,150.39976046,0.00026296,2]
[387982139,1758949115194,4702.12199857,0.00026296,2]
[387982140,1758949123160,5000.0,0.00026296,2]
[387982141,1758949125361,193.57,0.000249,2]
[387982142,1758949132147,104.31800143,0.00026296,2]
[387982143,1758949132170,4895.68199857,0.00026296,2]
[387982144,1758949148551,5000.0,0.00026296,2]
[387982145,1758949156598,104.32800143,0.00026296,2]
[387982146,1758949156620,3478.19666268,0.00026296,2]
[387982147,1758949173688,5000.0,0.00026296,2]
[387982148,1758949196671,1521.81333732,0.00026296,2]
[387982149,1758949196694,3478.18666268,0.00026296,2]
[387982150,1758949204663,4734.60877927,0.00026296,2]
[387982153,1758949220405,1787.21455805,0.00026296,2]
[387982154,1758949220429,3212.78544195,0.00026296,2]
[387982155,1758949228665,4097.36633683,0.00026296,2]
[387982156,1758949244119,5000.0,0.00026296,2]
[387982157,1758949258071,1417.787,0.00028767,120]
[387982158,1758949266701,5000.0,0.00026296,2]
[387982159,1758949274614,0.01,0.00026296,2]
[387982160,1758949274636,3945.90011183,0.00026296,2]
[387982161,1758949290116,5000.0,0.00026296,2]
[387982162,1758949313818,1054.10988817,0.00026296,2]
[387982163,1758949313842,3945.89011183,0.00026296,2]
[387982164,1758949337075,5000.0,0.00026296,2]
[387982165,1758949345112,821.43798717,0.00026296,2]
[387982166,1758949361616,232.681901,0.00026296,2]
[387982167,1758949361644,4767.318099,0.00026296,2]
[387982168,1758949369539,463.177176,0.00026296,2]
[387982169,1758949384795,3347.74131634,0.00026296,2]
[387982170,1758949392772,514.89525663,0.00026296,2]
[387982172,1758949401138,514.89525663,0.00026296,2]
[387982173,1758949406760,391.9828954,0.00026296,2]
[387982174,1758949406782,2945.2549274,0.00026296,2]
[387982175,1758949409815,2649.24777959,0.00026296,2]
[387982176,1758949425182,514.89525663,0.00026296,2]
[387982177,1758949433257,3890.61203638,0.00026296,2]
[387982178,1758949433524,1109.38796362,0.00026296,2]
[387982179,1758949441956,3988.88362556,0.00026296,2]
[387982180,1758949443446,167.41472179,0.000253,2]
[387982181,1758949457457,1328.79897893,0.00026296,2]
[387982182,1758949465477,2745.78869477,0.00026296,2]
[387982183,1758949481330,659.73601533,0.00026296,2]
[387982184,1758949481354,1823.15048407,0.00026296,2]
[387982185,1758949488895,-295.35598776,0.000263,2]
[387982186,1758949489925,2367.54631559,0.00026296,2]
[387982187,1758949491410,-4.64401224,0.000263,2]
[387982188,1758949506057,1925.97280786,0.00026296,2]
[387982189,1758949514242,563.16514598,0.00026296,2]
[387982190,1758949541135,2081.27512513,0.00025,2]
[387982191,1758949552446,1655.78996088,0.00026296,2]
[387982192,1758949629282,-200.5364501,0.00029711,30]
[387982193,1758949629302,-249.4635499,0.00030109,2]
[387982195,1758949641082,-50.5364501,0.00030109,2]
[387982196,1758949641105,-372.87972816,0.00030109,2]
[387982197,1758949646079,-27.12027184,0.00030109,2]
[387982198,1758949646100,-392.05751512,0.0003011,2]
[387982199,1758949724817,171.0,0.0002326,9]
[387982200,1758949761083,-154.55216391,0.00029523,2]
[387982202,1758949784190,508.34090752,0.000199,2]
[387982203,1758949784496,508.34090742,0.00021372,2]
[387982204,1758949784565,438.07177728,0.00027259,7]
[387982205,1758949784599,508.34090742,0.00022844,2]
[387982206,1758949784675,508.34090742,0.00025788,4]
[387982289,1758949832262,-70.26913014,0.00027259,7]
[387982291,1758949832272,-347.77421581,0.00028731,10]
[387982293,1758949832283,-160.56669161,0.00028731,10]
[387982295,1758949832293,-300.0,0.00029522,2]
[387982297,1758949832302,-740.5737988,0.00029523,2]
[387982300,1758949832318,-6611.59172966,0.00029523,2]
[387982302,1758949832329,-960.48203222,0.00029523,2]
[387982304,1758949832338,-300.00461118,0.00029623,30]
[387982306,1758949832349,-699.99538882,0.00029623,30]
[387982308,1758949832358,-2023.7900081,0.00029694,2]
[387982310,1758949832367,-1478.0503555,0.00029975,2]
[387982312,1758949832377,-107.94248488,0.0003011,2]
[387982314,1758949832386,-380.25078816,0.0003011,2]
[387982316,1758949832395,-285.84211407,0.0003011,2]
[387982318,1758949832405,-500.0,0.0003011,2]
[387982320,1758949832414,-500.0,0.0003011,2]
[387982322,1758949832424,-4923.8589733,0.00030112,2]
[387982324,1758949832434,-248.87163329,0.0003016,15]
[387982326,1758949832443,-508.34090742,0.00030203,13]
[387982328,1758949832453,-200.0,0.00030326,15]
[387982330,1758949832462,-222.1535029,0.00030704,2]
[387982332,1758949832471,-3121.26375817,0.00031109,2]
[387982336,1758949832499,-364.56725275,0.00031109,2]
[387982682,1758949837974,-252.7345481,0.00029974,2]
[387982684,1758949837984,-7481.96929235,0.00031109,2]
[387982686,1758949837993,-757.1284349,0.0003111,36]
[387982688,1758949838002,-263.24458665,0.00031318,2]
[387982690,1758949838012,-160.0,0.0003135,2]
[387982692,1758949838021,-241.613,0.0003144,29]
[387982694,1758949838031,-10008.0798238,0.00031441,2]
[387982696,1758949838040,-168.0,0.00031646,2]
[387982698,1758949838050,-508.34090742,0.00031675,16]
[387982700,1758949838059,-302.0,0.00031834,2]
[387982702,1758949838069,-260.0,0.00031898,2]
[387982704,1758949838078,-1156.0,0.00031979,7]
[387982706,1758949838088,-56.55777494,0.00031981,2]
[387982709,1758949838100,-111.44222506,0.00031981,2]
[387982710,1758949838109,-215.74962917,0.00032,120]
[387982712,1758949838119,-213.22406978,0.00032,120]
[387982715,1758949838128,-184.82473078,0.00032,120]
[387982716,1758949838138,-183.28330124,0.00032,120]
[387982718,1758949838147,-240.47604469,0.00032001,2]
[387982721,1758949838159,-121.52395531,0.00032001,2]
[387982723,1758949838168,-410.56938237,0.0003222,2]
[387982726,1758949838188,-528.08298489,0.0003222,2]
[387982728,1758949838199,-42.56863274,0.0003222,2]
[387982730,1758949838208,-971.90636952,0.0003222,2]
[387982732,1758949838220,-305.25423391,0.0003222,2]
[387982736,1758949838249,-883.84139657,0.0003222,2]
[387982738,1758949838259,-638.538,0.0003222,2]
[387982740,1758949838268,-360.0,0.00032446,2]
[387982742,1758949838277,-281.95,0.00032642,2]
[387982744,1758949838287,-1000.0,0.00032651,5]
[387982745,1758949838296,-483.97579235,0.00032742,2]
[387982746,1758949838306,-154.39576,0.00032742,2]
[387982747,1758949838315,-341.36730859,0.00032742,2]
[387982748,1758949838324,-606.26834006,0.00032742,2]
[387982749,1758949838333,-226.83800307,0.00032742,2]
[387982751,1758949838343,-408.30840553,0.00032742,2]
[387982753,1758949838352,-286.66265012,0.00032742,2]
[387982755,1758949838361,-368.72088086,0.00032742,2]
[387982757,1758949838371,-279.42928703,0.00032742,2]
[387982759,1758949838380,-500.0,0.00032742,2]
[387982761,1758949838389,-500.0,0.0003275,15]
[387982763,1758949838399,-500.0,0.0003275,15]
[387982765,1758949838408,-1000.0,0.00032775,2]
[387982767,1758949838418,-28129.8554618,0.00032785,2]
[387982769,1758949838427,-29385.85782757,0.00032795,2]
[387982771,1758949838437,-5216.67,0.000328,25]
[387982773,1758949838446,-6457.12520472,0.000328,2]
[387982775,1758949838455,-4993.70875013,0.000328,2]
[387982777,1758949838464,-161.80085215,0.00032801,2]
[387982779,1758949838474,-6718.63678154,0.00032801,2]
[387982781,1758949838484,-473.84025596,0.00032825,2]
[387982783,1758949838493,-621.77,0.00032863,3]
[387982785,1758949838503,-207.24,0.00032864,3]
[387982787,1758949838512,-500.0,0.00032873,5]
[387982789,1758949838521,-500.0,0.00032873,5]
[387982791,1758949838531,-151.0,0.00032873,5]
[387982793,1758949838540,-500.0,0.00032873,5]
[387982795,1758949838550,-155.94562016,0.00032873,5]
[387982797,1758949838559,-151.0,0.00032873,5]
[387982799,1758949838568,-153.16094079,0.00032873,5]
[387982801,1758949838579,-151.0,0.00032873,5]
[387982803,1758949838588,-151.0,0.00032873,2]
[387982805,1758949838598,-153.9317284,0.00032873,5]
[387982807,1758949838606,-151.0,0.00032873,5]
[387982809,1758949838615,-28129.8554618,0.00032874,2]
[387982811,1758949838625,-738.180916,0.00032877,2]
[387982813,1758949838635,-399.40356426,0.00032877,3]
[387982815,1758949838644,-477.79034442,0.00032877,3]
[387982817,1758949838653,-235.29267195,0.00032883,15]
[387982819,1758949838662,-28129.8554618,0.0003289,2]
[387982821,1758949838671,-202.18283777,0.00032894,10]
[387982823,1758949838680,-500.0,0.00032894,10]
[387982825,1758949838690,-9736.6091523,0.00032894,2]
[387982827,1758949838700,-2900.7313041,0.00032894,2]
[387982829,1758949838709,-200.77150509,0.00032894,10]
[387982831,1758949838718,-151.0,0.00032894,10]
[387982833,1758949838727,-299.27980241,0.00032894,10]
[387982835,1758949838736,-153.65506528,0.00032894,10]
[387982837,1758949838746,-152.41683478,0.00032894,10]
[387982839,1758949838755,-500.0,0.00032894,10]
[387982841,1758949838764,-151.43139138,0.00032894,10]
[387982843,1758949838774,-5000.0,0.00032899,60]
[387982845,1758949838784,-268.62317933,0.000329,7]
[387982847,1758949838793,-589.71394557,0.000329,7]
[387982849,1758949838803,-3008.53,0.000329,14]
[387982851,1758949838812,-4468.88153356,0.000329,2]
[387982853,1758949838821,-1467202.69659887,0.00032901,20]
[387983168,1758949841781,-249.70089758,0.00032901,20]
[387983192,1758949842003,-506.83698127,0.00032901,20]
[387983194,1758949842014,-3411.8,0.00032901,20]
[387983284,1758949842827,-105118.50814076,0.00032901,20]
[387983297,1758949842940,-1049.59863031,0.00032901,20]
[387983299,1758949842951,-432.40790632,0.00032901,20]
[387983304,1758949842999,-521.94346975,0.00032901,20]
[387983651,1758949846632,-1437.1938843,0.00032901,20]
[387983654,1758949846643,-527.3554621,0.00032901,20]
[387983657,1758949846662,-8528.49145041,0.00032901,20]
[387985459,1758950067322,2951.33255893,0.000199,2]
[387985460,1758950067377,2951.33255892,0.00022844,2]
[387985461,1758950067913,2951.33255892,0.00025788,4]
[387985462,1758950068135,1146.01232323,0.00021372,2]
[387985463,1758950068158,1805.32023569,0.00021372,2]
[387985464,1758950068253,2951.33255892,0.00024316,2]
[387985465,1758950213888,5000.0,0.00026296,2]
[387985466,1758950223636,3377.82821347,0.00026296,2]
[387985467,1758950239082,1622.18178653,0.00026296,2]
[387985468,1758950239106,2007.11299569,0.00026296,2]
[387985469,1758950261774,3017.60089535,0.00026296,2]
[387985470,1758950275366,488.25,0.000329,120]
[387985471,1758950285048,2798.53274786,0.00026296,2]